fUSD/lending_fUSD_20260530
["ID","MTS","AMOUNT","RATE_DAILY","PERIOD"]
[423400756,1780084646000,-500.0,0.00041095,30]
[423400759,1780084646000,-3609.6,0.00041095,120]
[423400757,1780084646000,-500.0,0.00041095,120]
[423400760,1780084646000,-1040.34,0.00041095,120]
[423400758,1780084646000,-508.66758531,0.00041095,120]
[423400761,1780084646000,-500.0,0.00041095,120]
[423400762,1780084646000,-984.52,0.00041095,120]
[423400764,1780084646000,-500.0,0.00041095,120]
[423400763,1780084646000,-2929.36,0.00041095,120]
[423400765,1780084646000,-500.0,0.00041095,120]
[423400766,1780084646000,-864.71,0.00041095,120]
[423400772,1780084647000,-687.26,0.00041095,120]
[423400773,1780084647000,-500.0,0.00041095,120]
[423400771,1780084647000,-500.0,0.00041095,120]
[423400767,1780084647000,-1926.72,0.00041095,120]
[423400768,1780084647000,-312.11890325,0.00041095,120]
[423400769,1780084647000,-500.0,0.00041095,120]
[423400774,1780084647000,-500.0,0.00041095,120]
[423400770,1780084647000,-1041.58,0.00041095,120]
[423400775,1780084647000,-1254.25,0.00041095,120]
[423400780,1780084647000,-500.0,0.00041095,120]
[423400778,1780084647000,-500.0,0.00041095,120]
[423400785,1780084647000,-559.40274629,0.00041095,120]
[423400784,1780084647000,-2108.93,0.00041095,120]
[423400783,1780084647000,-500.0,0.00041095,120]
[423400776,1780084647000,-500.0,0.00041095,120]
[423400781,1780084647000,-500.0,0.00041095,120]
[423400779,1780084647000,-500.0,0.00041095,120]
[423400777,1780084647000,-706.43,0.00041095,120]
[423400782,1780084647000,-500.0,0.00041095,120]
[423400793,1780084648000,-3234.67,0.00041095,120]
[423400787,1780084648000,-3116.75,0.00041095,120]
[423400788,1780084648000,-500.0,0.00041095,120]
[423400789,1780084648000,-759.13,0.00041095,120]
[423400791,1780084648000,-1042.45,0.00041095,120]
[423400790,1780084648000,-583.43,0.00041095,120]
[423400792,1780084648000,-3859.89,0.00041095,120]
[423400786,1780084648000,-554.95254254,0.00041095,120]
[423400796,1780084648000,-999.41,0.00041095,120]
[423400795,1780084648000,-500.0,0.00041095,120]
[423400797,1780084648000,-955.96,0.00041095,120]
[423400798,1780084648000,-500.0,0.00041095,120]
[423400799,1780084648000,-500.0,0.00041095,120]
[423400800,1780084648000,-500.0,0.00041095,120]
[423400801,1780084648000,-500.0,0.00041095,120]
[423400802,1780084648000,-500.0,0.00041095,120]
[423400803,1780084648000,-1424.42,0.00041095,120]
[423400794,1780084648000,-500.0,0.00041095,120]
[423400805,1780084649000,-500.0,0.00041095,120]
[423400804,1780084649000,-671.3,0.00041095,120]
[423400806,1780084649000,-502.15372004,0.00041095,120]
[423400808,1780084649000,-500.0,0.00041095,120]
[423400809,1780084649000,-1729.64,0.00041095,120]
[423400810,1780084649000,-663.47,0.00041095,120]
[423400812,1780084649000,-500.0,0.00041095,120]
[423400807,1780084649000,-517.98,0.00041095,120]
[423400813,1780084649000,-500.0,0.00041095,31]
[423400814,1780084649000,-500.0,0.00041095,120]
[423400815,1780084649000,-500.0,0.00041095,120]
[423400816,1780084649000,-500.0,0.00041095,120]
[423400817,1780084649000,-500.0,0.00041095,120]
[423400819,1780084649000,-500.0,0.00041095,120]
[423400818,1780084649000,-1837.52,0.00041095,120]
[423400820,1780084649000,-1936.61,0.00041095,120]
[423400811,1780084649000,-1261.87,0.00041095,120]
[423400821,1780084650000,-1408.32,0.00041095,120]
[423400822,1780084650000,-2585.37,0.00041095,120]
[423400823,1780084650000,-944.44,0.00041095,120]
[423400824,1780084650000,-500.0,0.00041095,120]
[423400826,1780084650000,-965.27,0.00041095,120]
[423400825,1780084650000,-3018.26,0.00041095,120]
[423400828,1780084650000,-715.96,0.00041095,120]
[423400827,1780084650000,-500.0,0.00041095,120]
[423400830,1780084650000,-500.0,0.00041095,120]
[423400829,1780084650000,-500.0,0.00041095,120]
[423400831,1780084650000,-968.38,0.00041095,120]
[423400833,1780084650000,-500.0,0.00041095,120]
[423400832,1780084650000,-1729.49,0.00041095,120]
[423400834,1780084650000,-500.0,0.00041095,120]
[423400835,1780084650000,-1105.64,0.00041095,120]
[423400836,1780084650000,-3296.28,0.00041095,120]
[423400837,1780084651000,-500.0,0.00041095,120]
[423400838,1780084651000,-500.0,0.00041095,120]
[423400839,1780084651000,-909.77,0.00041095,120]
[423400840,1780084651000,-2264.46,0.00041095,120]
[423400841,1780084651000,-500.0,0.00041095,120]
[423400842,1780084651000,-500.0,0.00041095,120]
[423400843,1780084651000,-422.72971529,0.00041095,120]
[423400845,1780084651000,-500.0,0.00041095,120]
[423400844,1780084651000,-500.0,0.00041095,120]
[423400847,1780084651000,-597.64,0.00041095,120]
[423400853,1780084651000,-500.0,0.00041095,120]
[423400854,1780084651000,-686.6,0.00041095,120]
[423400852,1780084651000,-500.0,0.00041095,120]
[423400851,1780084651000,-500.0,0.00041095,120]
[423400846,1780084651000,-500.0,0.00041095,120]
[423400850,1780084651000,-564.2,0.00041095,120]
[423400848,1780084651000,-500.0,0.00041095,120]
[423400855,1780084651000,-1436.63,0.00041095,120]
[423400849,1780084651000,-500.0,0.00041095,120]
[423400864,1780084652000,-1338.01,0.00041095,120]
[423400856,1780084652000,-893.19,0.00041095,120]
[423400859,1780084652000,-2547.74,0.00041095,120]
[423400858,1780084652000,-500.0,0.00041095,120]
[423400861,1780084652000,-500.0,0.00041095,120]
[423400860,1780084652000,-301.15902585,0.00041095,120]
[423400863,1780084652000,-500.0,0.00041095,120]
[423400862,1780084652000,-500.0,0.00041095,120]
[423400857,1780084652000,-1161.94,0.00041095,120]
[423400867,1780084652000,-500.0,0.00041095,120]
[423400866,1780084652000,-2066.02,0.00041095,120]
[423400865,1780084652000,-235.36586265,0.00041095,120]
[423400873,1780084652000,-1739.65,0.00041095,120]
[423400874,1780084652000,-2082.39,0.00041095,120]
[423400872,1780084652000,-500.0,0.00041095,120]
[423400875,1780084652000,-500.0,0.00041095,120]
[423400869,1780084652000,-500.0,0.00041095,120]
[423400870,1780084652000,-2291.71,0.00041095,120]
[423400868,1780084652000,-979.66,0.00041095,120]
[423400871,1780084652000,-1104.86,0.00041095,120]
[423400883,1780084653000,-676.82,0.00041095,120]
[423400876,1780084653000,-2281.31,0.00041095,120]
[423400878,1780084653000,-500.0,0.00041095,120]
[423400877,1780084653000,-500.0,0.00041095,120]
[423400880,1780084653000,-500.0,0.00041095,120]
[423400881,1780084653000,-500.0,0.00041095,120]
[423400882,1780084653000,-500.0,0.00041095,120]
[423400884,1780084653000,-1132.11,0.00041095,120]
[423400879,1780084653000,-500.0,0.00041095,60]
[423400886,1780084653000,-500.0,0.00041095,120]
[423400893,1780084653000,-500.0,0.00041095,120]
[423400892,1780084653000,-1624.19,0.00041095,120]
[423400891,1780084653000,-500.0,0.00041095,120]
[423400890,1780084653000,-500.0,0.00041095,120]
[423400885,1780084653000,-3372.18,0.00041095,120]
[423400889,1780084653000,-500.0,0.00041095,120]
[423400888,1780084653000,-500.0,0.00041095,30]
[423400887,1780084653000,-500.0,0.00041095,120]
[423400894,1780084653000,-727.26,0.00041095,120]
[423400895,1780084654000,-500.0,0.00041095,120]
[423400897,1780084654000,-500.0,0.00041095,120]
[423400896,1780084654000,-500.0,0.00041095,120]
[423400899,1780084654000,-500.0,0.00041095,120]
[423400898,1780084654000,-500.0,0.00041095,120]
[423400901,1780084654000,-500.0,0.00041095,120]
[423400902,1780084654000,-623.82,0.00041095,120]
[423400904,1780084654000,-500.0,0.00041095,120]
[423400903,1780084654000,-500.0,0.00041095,120]
[423400900,1780084654000,-500.0,0.00041095,120]
[423400916,1780084654000,-500.0,0.00041095,120]
[423400905,1780084654000,-1098.09,0.00041095,120]
[423400914,1780084654000,-500.0,0.00041095,120]
[423400915,1780084654000,-500.0,0.00041095,120]
[423400913,1780084654000,-1172.8,0.00041095,120]
[423400912,1780084654000,-701.78,0.00041095,120]
[423400906,1780084654000,-500.0,0.00041095,120]
[423400909,1780084654000,-500.0,0.00041095,120]
[423400910,1780084654000,-964.0,0.00041095,120]
[423400907,1780084654000,-594.93,0.00041095,120]
[423400908,1780084654000,-3225.72,0.00041095,120]
[423400911,1780084654000,-500.0,0.00041095,120]
[423400917,1780084655000,-500.0,0.00041095,120]
[423400919,1780084655000,-723.81,0.00041095,120]
[423400918,1780084655000,-500.0,0.00041095,120]
[423400921,1780084655000,-1252.39,0.00041095,120]
[423400920,1780084655000,-523.93398111,0.00041095,120]
[423400922,1780084655000,-1983.03,0.00041095,120]
[423400923,1780084655000,-500.0,0.00041095,120]
[423400925,1780084655000,-500.0,0.00041095,120]
[423400924,1780084655000,-500.0,0.00041095,120]
[423400927,1780084655000,-1553.75,0.00041095,120]
[423400929,1780084655000,-500.0,0.00041095,120]
[423400936,1780084655000,-500.0,0.00041095,120]
[423400935,1780084655000,-500.0,0.00041095,120]
[423400933,1780084655000,-2167.78,0.00041095,120]
[423400934,1780084655000,-500.0,0.00041095,120]
[423400926,1780084655000,-500.0,0.00041095,120]
[423400930,1780084655000,-500.0,0.00041095,120]
[423400931,1780084655000,-500.0,0.00041095,120]
[423400928,1780084655000,-500.0,0.00041095,120]
[423400932,1780084655000,-500.0,0.00041095,120]
[423400946,1780084656000,-1913.41,0.00041095,120]
[423400938,1780084656000,-211.61036269,0.00041095,120]
[423400939,1780084656000,-500.0,0.00041095,30]
[423400940,1780084656000,-603.03,0.00041095,120]
[423400941,1780084656000,-520.63348904,0.00041095,120]
[423400942,1780084656000,-500.0,0.00041095,120]
[423400944,1780084656000,-500.0,0.00041095,120]
[423400943,1780084656000,-1128.33,0.00041095,120]
[423400945,1780084656000,-191.05578469,0.00041095,120]
[423400937,1780084656000,-500.0,0.00041095,120]
[423400947,1780084656000,-500.0,0.00041095,120]
[423400949,1780084656000,-500.0,0.00041095,120]
[423400950,1780084656000,-500.0,0.00041095,120]
[423400951,1780084656000,-500.0,0.00041095,120]
[423400953,1780084656000,-500.0,0.00041095,120]
[423400952,1780084656000,-500.0,0.00041095,120]
[423400954,1780084656000,-500.0,0.00041095,120]
[423400955,1780084656000,-500.0,0.00041095,120]
[423400956,1780084656000,-500.0,0.00041095,120]
[423400957,1780084656000,-500.0,0.00041095,120]
[423400948,1780084656000,-500.0,0.00041095,120]
[423400965,1780084657000,-500.0,0.00041095,120]
[423400962,1780084657000,-500.0,0.00041095,120]
[423400963,1780084657000,-747.09,0.00041095,120]
[423400964,1780084657000,-2156.72,0.00041095,120]
[423400961,1780084657000,-500.0,0.00041095,60]
[423400958,1780084657000,-793.92,0.00041095,120]
[423400959,1780084657000,-1153.76,0.00041095,120]
[423400960,1780084657000,-1536.55,0.00041095,120]
[423400967,1780084657000,-500.0,0.00041095,120]
[423400977,1780084657000,-500.0,0.00041095,120]
[423400969,1780084657000,-2780.99,0.00041095,120]
[423400966,1780084657000,-1105.85,0.00041095,120]
[423400976,1780084657000,-500.0,0.00041095,90]
[423400974,1780084657000,-500.0,0.00041095,120]
[423400973,1780084657000,-928.98,0.00041095,120]
[423400975,1780084657000,-500.0,0.00041095,120]
[423400970,1780084657000,-1354.86,0.00041095,120]
[423400971,1780084657000,-523.40740164,0.00041095,120]
[423400968,1780084657000,-500.0,0.00041095,120]
[423400972,1780084657000,-500.0,0.00041095,120]
[423400983,1780084658000,-909.92,0.00041095,120]
[423400979,1780084658000,-548.44,0.00041095,120]
[423400978,1780084658000,-500.0,0.00041095,120]
[423400980,1780084658000,-500.0,0.00041095,120]
[423400981,1780084658000,-1707.9,0.00041095,120]
[423400982,1780084658000,-619.05,0.00041095,120]
[423400985,1780084658000,-500.0,0.00041095,120]
[423400984,1780084658000,-500.0,0.00041095,120]
[423400986,1780084658000,-500.0,0.00041095,120]
[423400987,1780084658000,-500.0,0.00041095,120]
[423400988,1780084658000,-500.0,0.00041095,120]
[423400989,1780084658000,-500.0,0.00041095,120]
[423400991,1780084658000,-500.0,0.00041095,120]
[423400990,1780084658000,-500.0,0.00041095,90]
[423400992,1780084658000,-861.1,0.00041095,120]
[423400993,1780084658000,-500.0,0.00041095,120]
[423401000,1780084659000,-500.0,0.00041095,120]
[423400999,1780084659000,-500.0,0.00041095,120]
[423400998,1780084659000,-553.13,0.00041095,120]
[423400995,1780084659000,-502.74517973,0.00041095,30]
[423400996,1780084659000,-1582.76,0.00041095,120]
[423400994,1780084659000,-500.0,0.00041095,120]
[423401001,1780084659000,-500.0,0.00041095,120]
[423400997,1780084659000,-500.0,0.00041095,120]
[423401004,1780084659000,-500.0,0.00041095,120]
[423401002,1780084659000,-648.15,0.00041095,120]
[423401012,1780084659000,-500.0,0.00041095,120]
[423401013,1780084659000,-500.0,0.00041095,120]
[423401011,1780084659000,-500.0,0.00041095,120]
[423401010,1780084659000,-500.0,0.00041095,120]
[423401009,1780084659000,-500.0,0.00041095,120]
[423401003,1780084659000,-2592.47,0.00041095,120]
[423401006,1780084659000,-500.0,0.00041095,120]
[423401007,1780084659000,-523.0,0.00041095,120]
[423401005,1780084659000,-500.0,0.00041095,120]
[423401008,1780084659000,-500.0,0.00041095,120]
[423401021,1780084660000,-500.0,0.00041095,120]
[423401015,1780084660000,-500.0,0.00041095,120]
[423401016,1780084660000,-767.01,0.00041095,120]
[423401018,1780084660000,-2689.08,0.00041095,120]
[423401017,1780084660000,-500.0,0.00041095,120]
[423401020,1780084660000,-500.0,0.00041095,120]
[423401019,1780084660000,-500.0,0.00041095,120]
[423401022,1780084660000,-602.27,0.00041095,120]
[423401014,1780084660000,-500.0,0.00041095,120]
[423401024,1780084660000,-500.0,0.00041095,120]
[423401026,1780084660000,-500.0,0.00041095,30]
[423401028,1780084660000,-1805.38,0.00041095,120]
[423401027,1780084660000,-500.0,0.00041095,120]
[423401030,1780084660000,-500.0,0.00041095,120]
[423401029,1780084660000,-500.0,0.00041095,120]
[423401032,1780084660000,-641.39,0.00041095,120]
[423401031,1780084660000,-500.0,0.00041095,120]
[423401023,1780084660000,-500.0,0.00041095,120]
[423401025,1780084660000,-500.0,0.00041095,120]
[423401038,1780084661000,-500.0,0.00041095,120]
[423401040,1780084661000,-500.0,0.00041095,120]
[423401037,1780084661000,-500.0,0.00041095,120]
[423401039,1780084661000,-500.0,0.00041095,120]
[423401035,1780084661000,-861.65,0.00041095,120]
[423401033,1780084661000,-512.94,0.00041095,120]
[423401034,1780084661000,-2822.49,0.00041095,120]
[423401036,1780084661000,-500.0,0.00041095,120]
[423401042,1780084661000,-500.0,0.00041095,120]
[423401050,1780084661000,-500.0,0.00041095,120]
[423401043,1780084661000,-500.0,0.00041095,120]
[423401051,1780084661000,-500.0,0.00041095,120]
[423401052,1780084661000,-2740.2,0.00041095,120]
[423401049,1780084661000,-500.0,0.00041095,120]
[423401047,1780084661000,-500.0,0.00041095,120]
[423401041,1780084661000,-500.0,0.00041095,120]
[423401045,1780084661000,-3405.86,0.00041095,120]
[423401046,1780084661000,-500.0,0.00041095,120]
[423401044,1780084661000,-1566.37,0.00041095,120]
[423401048,1780084661000,-500.0,0.00041095,120]
[423401062,1780084662000,-500.0,0.00041095,120]
[423401053,1780084662000,-500.0,0.00041095,120]
[423401056,1780084662000,-500.0,0.00041095,120]
[423401055,1780084662000,-930.59,0.00041095,120]
[423401058,1780084662000,-500.0,0.00041095,120]
[423401057,1780084662000,-500.0,0.00041095,120]
[423401060,1780084662000,-633.26,0.00041095,120]
[423401059,1780084662000,-500.0,0.00041095,120]
[423401061,1780084662000,-500.0,0.00041095,120]
[423401054,1780084662000,-720.04,0.00041095,120]
[423401063,1780084662000,-987.37,0.00041095,120]
[423401072,1780084662000,-603.48678536,0.00041095,120]
[423401070,1780084662000,-500.0,0.00041095,120]
[423401071,1780084662000,-500.0,0.00041095,120]
[423401068,1780084662000,-857.8,0.00041095,120]
[423401073,1780084662000,-500.0,0.00041095,120]
[423401067,1780084662000,-544.18744869,0.00041095,120]
[423401066,1780084662000,-500.0,0.00041095,120]
[423401065,1780084662000,-644.37,0.00041095,120]
[423401069,1780084662000,-500.0,0.00041095,120]
[423401064,1780084662000,-500.0,0.00041095,120]
[423401083,1780084663000,-500.0,0.00041095,120]
[423401074,1780084663000,-500.0,0.00041095,120]
[423401075,1780084663000,-939.79,0.00041095,120]
[423401077,1780084663000,-500.0,0.00041095,120]
[423401076,1780084663000,-500.0,0.00041095,120]
[423401079,1780084663000,-507.75,0.00041095,120]
[423401078,1780084663000,-538.31,0.00041095,120]
[423401081,1780084663000,-500.0,0.00041095,120]
[423401080,1780084663000,-500.0,0.00041095,120]
[423401085,1780084663000,-703.79,0.00041095,120]
[423401084,1780084663000,-500.0,0.00041095,120]
[423401087,1780084663000,-500.0,0.00041095,120]
[423401086,1780084663000,-500.0,0.00041095,120]
[423401089,1780084663000,-1005.23,0.00041095,120]
[423401088,1780084663000,-500.0,0.00041095,120]
[423401091,1780084663000,-777.38,0.00041095,120]
[423401090,1780084663000,-500.0,0.00041095,120]
[423401092,1780084663000,-249.57562877,0.00041095,120]
[423401093,1780084663000,-500.0,0.00041095,120]
[423401082,1780084663000,-500.0,0.00041095,120]
[423401100,1780084664000,-500.0,0.00041095,120]
[423401101,1780084664000,-3738.57,0.00041095,120]
[423401098,1780084664000,-500.0,0.00041095,120]
[423401095,1780084664000,-514.19,0.00041095,120]
[423401096,1780084664000,-770.03,0.00041095,120]
[423401097,1780084664000,-1177.36,0.00041095,120]
[423401102,1780084664000,-500.0,0.00041095,120]
[423401099,1780084664000,-500.0,0.00041095,120]
[423401103,1780084664000,-500.0,0.00041095,120]
[423401094,1780084664000,-500.0,0.00041095,120]
[423401105,1780084664000,-500.0,0.00041095,120]
[423401112,1780084664000,-500.0,0.00041095,120]
[423401113,1780084664000,-500.0,0.00041095,120]
[423401110,1780084664000,-738.4,0.00041095,120]
[423401111,1780084664000,-1589.0,0.00041095,120]
[423401104,1780084664000,-500.0,0.00041095,120]
[423401109,1780084664000,-500.0,0.00041095,120]
[423401106,1780084664000,-797.11,0.00041095,120]
[423401107,1780084664000,-1044.73,0.00041095,120]
[423401108,1780084664000,-500.0,0.00041095,120]
[423401114,1780084665000,-500.0,0.00041095,120]
[423401115,1780084665000,-500.0,0.00041095,120]
[423401117,1780084665000,-1333.51,0.00041095,120]
[423401116,1780084665000,-655.96,0.00041095,120]
[423401119,1780084665000,-500.0,0.00041095,120]
[423401118,1780084665000,-836.79,0.00041095,120]
[423401120,1780084665000,-500.0,0.00041095,120]
[423401123,1780084665000,-500.0,0.00041095,120]
[423401122,1780084665000,-500.0,0.00041095,120]
[423401121,1780084665000,-500.0,0.00041095,120]
[423401126,1780084665000,-500.0,0.00041095,120]
[423401124,1780084665000,-274.85005044,0.00041095,120]
[423401131,1780084665000,-826.8,0.00041095,120]
[423401132,1780084665000,-500.0,0.00041095,120]
[423401130,1780084665000,-500.0,0.00041095,120]
[423401133,1780084665000,-1685.25,0.00041095,120]
[423401127,1780084665000,-663.88,0.00041095,120]
[423401128,1780084665000,-605.47,0.00041095,120]
[423401125,1780084665000,-500.0,0.00041095,120]
[423401129,1780084665000,-2240.31,0.00041095,120]
[423401141,1780084666000,-1217.2,0.00041095,120]
[423401134,1780084666000,-308.49,0.00041095,120]
[423401136,1780084666000,-166.51538283,0.00041095,120]
[423401135,1780084666000,-500.0,0.00041095,120]
[423401137,1780084666000,-934.34,0.00041095,120]
[423401138,1780084666000,-1096.13,0.00041095,120]
[423401139,1780084666000,-500.0,0.00041095,120]
[423401142,1780084666000,-762.81,0.00041095,120]
[423401144,1780084666000,-500.0,0.00041095,120]
[423401140,1780084666000,-500.0,0.00041095,120]
[423401146,1780084666000,-500.0,0.00041095,120]
[423401153,1780084666000,-500.0,0.00041095,120]
[423401152,1780084666000,-500.0,0.00041095,120]
[423401151,1780084666000,-1403.23,0.00041095,120]
[423401150,1780084666000,-500.0,0.00041095,120]
[423401143,1780084666000,-500.0,0.00041095,120]
[423401147,1780084666000,-500.0,0.00041095,120]
[423401154,1780084666000,-814.05,0.00041095,120]
[423401148,1780084666000,-500.0,0.00041095,120]
[423401145,1780084666000,-933.72,0.00041095,120]
[423401149,1780084666000,-1054.16,0.00041095,120]
[423401165,1780084667000,-521.31,0.00041095,120]
[423401157,1780084667000,-1445.38,0.00041095,120]
[423401156,1780084667000,-500.0,0.00041095,120]
[423401158,1780084667000,-500.0,0.00041095,120]
[423401159,1780084667000,-500.0,0.00041095,120]
[423401160,1780084667000,-500.0,0.00041095,120]
[423401161,1780084667000,-500.0,0.00041095,120]
[423401162,1780084667000,-500.0,0.00041095,120]
[423401163,1780084667000,-500.0,0.00041095,120]
[423401155,1780084667000,-500.0,0.00041095,120]
[423401164,1780084667000,-500.0,0.00041095,120]
[423401168,1780084667000,-500.0,0.00041095,120]
[423401167,1780084667000,-809.88,0.00041095,120]
[423401169,1780084667000,-500.0,0.00041095,120]
[423401170,1780084667000,-500.0,0.00041095,120]
[423401172,1780084667000,-500.0,0.00041095,120]
[423401171,1780084667000,-500.0,0.00041095,120]
[423401174,1780084667000,-611.37,0.00041095,120]
[423401173,1780084667000,-3222.14,0.00041095,120]
[423401175,1780084667000,-500.0,0.00041095,120]
[423401166,1780084667000,-500.0,0.00041095,120]
[423401183,1780084668000,-500.0,0.00041095,120]
[423401181,1780084668000,-500.0,0.00041095,120]
[423401182,1780084668000,-625.23,0.00041095,120]
[423401180,1780084668000,-1163.38,0.00041095,120]
[423401184,1780084668000,-754.19,0.00041095,120]
[423401178,1780084668000,-875.27,0.00041095,120]
[423401177,1780084668000,-500.0,0.00041095,120]
[423401176,1780084668000,-500.0,0.00041095,120]
[423401179,1780084668000,-545.28933234,0.00041095,120]
[423401185,1780084668000,-500.0,0.00041095,120]
[423401186,1780084668000,-500.0,0.00041095,120]
[423401187,1780084668000,-500.0,0.00041095,120]
[423401195,1780084668000,-500.0,0.00041095,120]
[423401194,1780084668000,-594.68302823,0.00041095,120]
[423401192,1780084668000,-1286.78,0.00041095,120]
[423401193,1780084668000,-1622.34,0.00041095,120]
[423401196,1780084668000,-500.0,0.00041095,120]
[423401190,1780084668000,-3165.57,0.00041095,120]
[423401189,1780084668000,-500.0,0.00041095,120]
[423401188,1780084668000,-500.0,0.00041095,120]
[423401191,1780084668000,-500.0,0.00041095,120]
[423401205,1780084669000,-500.0,0.00041095,120]
[423401197,1780084669000,-500.0,0.00041095,120]
[423401199,1780084669000,-1019.23,0.00041095,120]
[423401198,1780084669000,-500.0,0.00041095,120]
[423401200,1780084669000,-500.0,0.00041095,120]
[423401201,1780084669000,-500.0,0.00041095,120]
[423401203,1780084669000,-500.0,0.00041095,120]
[423401202,1780084669000,-500.0,0.00041095,120]
[423401206,1780084669000,-500.0,0.00041095,120]
[423401204,1780084669000,-500.0,0.00041095,120]
[423401208,1780084669000,-500.0,0.00041095,120]
[423401216,1780084669000,-793.65,0.00041095,120]
[423401209,1780084669000,-500.0,0.00041095,120]
[423401210,1780084669000,-500.0,0.00041095,120]
[423401211,1780084669000,-2899.31,0.00041095,120]
[423401212,1780084669000,-250.8538153,0.00041095,120]
[423401213,1780084669000,-500.0,0.00041095,120]
[423401214,1780084669000,-500.0,0.00041095,120]
[423401215,1780084669000,-500.0,0.00041095,120]
[423401207,1780084669000,-500.0,0.00041095,120]
[423401217,1780084669000,-555.29,0.00041095,120]
[423401222,1780084670000,-500.0,0.00041095,120]
[423401221,1780084670000,-500.0,0.00041095,120]
[423401223,1780084670000,-500.0,0.00041095,120]
[423401219,1780084670000,-500.0,0.00041095,120]
[423401218,1780084670000,-500.0,0.00041095,120]
[423401220,1780084670000,-500.0,0.00041095,120]
[423401224,1780084670000,-500.0,0.00041095,120]
[423401226,1780084670000,-500.0,0.00041095,60]
[423401225,1780084670000,-2170.36,0.00041095,120]
[423401227,1780084670000,-500.0,0.00041095,120]
[423401228,1780084670000,-500.0,0.00041095,120]
[423401229,1780084670000,-500.0,0.00041095,120]
[423401230,1780084670000,-500.0,0.00041095,120]
[423401231,1780084670000,-500.0,0.00041095,120]
[423401232,1780084670000,-500.0,0.00041095,120]
[423401233,1780084670000,-500.0,0.00041095,120]
[423401240,1780084671000,-500.0,0.00041095,120]
[423401239,1780084671000,-500.0,0.00041095,120]
[423401238,1780084671000,-500.0,0.00041095,120]
[423401242,1780084671000,-500.0,0.00041095,120]
[423401235,1780084671000,-222.9757384,0.00041095,120]
[423401236,1780084671000,-500.0,0.00041095,120]
[423401241,1780084671000,-500.0,0.00041095,120]
[423401237,1780084671000,-503.85,0.00041095,120]
[423401234,1780084671000,-500.0,0.00041095,120]
[423401245,1780084671000,-500.0,0.00041095,120]
[423401244,1780084671000,-500.0,0.00041095,120]
[423401246,1780084671000,-500.0,0.00041095,120]
[423401247,1780084671000,-500.0,0.00041095,120]
[423401248,1780084671000,-500.0,0.00041095,120]
[423401250,1780084671000,-590.28,0.00041095,120]
[423401249,1780084671000,-500.0,0.00041095,120]
[423401251,1780084671000,-500.0,0.00041095,120]
[423401252,1780084671000,-500.0,0.00041095,120]
[423401243,1780084671000,-500.0,0.00041095,120]
[423401258,1780084672000,-500.0,0.00041095,120]
[423401259,1780084672000,-500.0,0.00041095,120]
[423401256,1780084672000,-500.0,0.00041095,120]